fUSD/lending_fUSD_20251224
["ID","MTS","AMOUNT","RATE_DAILY","PERIOD"]
[399607626,1766542252011,-150.0,0.000286,2]
[399607627,1766542252022,-150.0,0.000286,2]
[399607628,1766542252032,-150.0,0.000286,2]
[399607629,1766542252043,-150.0,0.000286,2]
[399607630,1766542252060,-150.0,0.000286,2]
[399607631,1766542252071,-150.0,0.000286,2]
[399607632,1766542252081,-150.0,0.000286,2]
[399607633,1766542252093,-612.0,0.000286,2]
[399607634,1766542252104,-1326.0,0.000286,2]
[399607635,1766542252114,-3458.0,0.000286,2]
[399607636,1766542252128,-1609.0,0.000286,2]
[399607637,1766542252139,-468.0,0.000286,2]
[399607638,1766542252150,-1263.0,0.000286,2]
[399607639,1766542252160,-150.0,0.00028623,2]
[399607640,1766542252171,-671.20407632,0.00028623,2]
[399607641,1766542252181,-150.0,0.00028623,2]
[399607642,1766542252192,-7372.63462582,0.00028623,2]
[399607643,1766542252203,-167.64976463,0.00028792,30]
[399607644,1766542252214,-3095.17492135,0.00028798,5]
[399607645,1766542252224,-209.0,0.0002882,30]
[399607646,1766542252235,-172.00409326,0.00028894,30]
[399607647,1766542252253,-155.0,0.00028997,14]
[399607648,1766542252272,-534.0,0.00028997,14]
[399607649,1766542252293,-550.0,0.00029,2]
[399607650,1766542252314,-150.0,0.0002921,2]
[399607651,1766542252336,-163.21355269,0.00029211,2]
[399607652,1766542252348,-1474.2,0.00029335,2]
[399607653,1766542252362,-151.33873241,0.00029393,2]
[399607654,1766542252373,-706.05723699,0.000294,2]
[399607655,1766542252383,-912.0,0.0002943,2]
[399607656,1766542252393,-1198.0,0.0002943,2]
[399607657,1766542252403,-1000.0,0.0002947,2]
[399607658,1766542252414,-400.69983867,0.0002947,2]
[399607659,1766542252424,-777.86,0.00029499,120]
[399607660,1766542252438,-777.86,0.00029499,120]
[399607661,1766542252458,-490400.38190383,0.000295,120]
[399607662,1766542252479,-151.0,0.000295,7]
[399607663,1766542252498,-151.0,0.000295,7]
[399607664,1766542252510,-203.098236,0.000295,7]
[399607665,1766542252520,-151.0,0.000295,7]
[399607666,1766542252531,-204.069289,0.000295,7]
[399607667,1766542252543,-503.2163491,0.000295,20]
[399607668,1766542252555,-440.13378286,0.000295,2]
[399607669,1766542252566,-625.76343979,0.000295,2]
[399607670,1766542252576,-1502.791178,0.000295,2]
[399607671,1766542252586,-4807.0,0.00029537,2]
[399607672,1766542252596,-564.0,0.00029537,2]
[399607673,1766542252607,-2430.0,0.00029537,2]
[399607674,1766542252619,-500.0,0.000297,5]
[399607675,1766542252641,-500.0,0.000297,5]
[399607676,1766542252655,-481.11077973,0.00029828,2]
[399607677,1766542252667,-78456.94563528,0.000299,2]
[399607678,1766542252677,-235.90451856,0.0002999,2]
[399607679,1766542252689,-250.0,0.0003,30]
[399607680,1766542252701,-400.0,0.0003,120]
[399607681,1766542252713,-3006.19711478,0.0003,120]
[399607682,1766542252724,-16367.70758412,0.0003,2]
[399607683,1766542252736,-19760.98637512,0.0003,2]
[399607684,1766542252748,-1806.86437695,0.0003,2]
[399607685,1766542252759,-438.68124332,0.0003,2]
[399607686,1766542252769,-162.07266062,0.0003,2]
[399607687,1766542252781,-222.4,0.0003,2]
[399607688,1766542252793,-186.82,0.0003,22]
[399607689,1766542252804,-1500.0,0.0003,2]
[399607690,1766542252815,-483.13530369,0.000301,2]
[399607691,1766542252826,-1067.31512763,0.0003013,2]
[399607692,1766542252839,-13771.51705123,0.0003013,2]
[399607693,1766542252849,-630.31072965,0.0003013,2]
[399607694,1766542252860,-5029.57444352,0.0003013,2]
[399607695,1766542252872,-200.51754941,0.0003013,2]
[399607696,1766542252884,-1217.25561198,0.0003013,2]
[399607697,1766542252896,-7686.6832916,0.0003013,2]
[399607698,1766542252907,-947.71,0.00030137,2]
[399607699,1766542252919,-447.03,0.000302,30]
[399607700,1766542252929,-151.33873241,0.00030792,2]
[399607701,1766542252941,-209.0,0.0003084,30]
[399607702,1766542252952,-2596.79629911,0.0003084,2]
[399607703,1766542252964,-78544.05413352,0.0003095,2]
[399607704,1766542252975,-250.0,0.00031,30]
[399607705,1766542252987,-600.0,0.00031,2]
[399607706,1766542252996,-498.91187858,0.00031197,2]
[399607707,1766542253014,-1474.2,0.00031254,2]
[399607708,1766542253027,-200.0,0.000314,120]
[399607709,1766542253039,-500.0,0.000315,5]
[399607710,1766542253055,-185.19,0.00031507,120]
[399607711,1766542253066,-150.0,0.000316,2]
[399607712,1766542253080,-150.0,0.000316,2]
[399607713,1766542253094,-150.0,0.000316,2]
[399607714,1766542253106,-150.0,0.000316,2]
[399607715,1766542253118,-612.0,0.000316,2]
[399607716,1766542253130,-1326.0,0.000316,2]
[399607717,1766542253141,-3458.0,0.000316,2]
[399607718,1766542253152,-1609.0,0.000316,2]
[399607719,1766542253163,-468.0,0.000316,2]
[399607720,1766542253175,-1263.0,0.000316,2]
[399607721,1766542253186,-447.03,0.000318,30]
[399607722,1766542253198,-2000.0,0.000318,2]
[399607723,1766542253209,-250.0,0.00032,30]
[399607724,1766542253220,-400.0,0.00032,120]
[399607725,1766542253231,-245.76,0.00032,7]
[399607726,1766542253242,-7045.4,0.000321,7]
[399607727,1766542253253,-151.33873241,0.00032192,2]
[399607728,1766542253264,-777.86,0.00032298,120]
[399607729,1766542253275,-888.9099416,0.000323,2]
[399607730,1766542253287,-912.0,0.0003243,2]
[399607731,1766542253298,-1198.0,0.0003243,2]
[399607732,1766542253309,-4807.0,0.00032537,2]
[399607733,1766542253320,-564.0,0.00032537,2]
[399607734,1766542253331,-2430.0,0.00032537,2]
[399607735,1766542253343,-612.28081124,0.00032566,2]
[399607736,1766542253354,-4799.74563226,0.000328,2]
[399607737,1766542253371,-209.0,0.0003286,30]
[399607738,1766542253382,-506.81347719,0.00032876,2]
[399607739,1766542253394,-777.86,0.00032876,120]
[399607740,1766542253405,-777.86,0.00032876,120]
[399607741,1766542253416,-777.86,0.00032876,120]
[399607742,1766542253427,-777.86,0.00032876,120]
[399607743,1766542253438,-777.90837029,0.00032876,120]
[399607744,1766542253449,-500.0,0.00032876,2]
[399607745,1766542253461,-500.0,0.00032876,2]
[399607746,1766542253479,-500.0,0.00032876,2]
[399607747,1766542253500,-500.0,0.00032876,2]
[399607748,1766542253512,-420.88291463,0.00032876,2]
[399607749,1766542253524,-421.36,0.00032876,2]
[399607750,1766542253537,-421.36,0.00032876,2]
[399607751,1766542253550,-421.36,0.00032876,2]
[399607752,1766542253563,-421.36,0.00032876,2]
[399607753,1766542253576,-421.36,0.00032876,2]
[399607754,1766542253589,-421.36,0.00032876,2]
[399607755,1766542253601,-421.36,0.00032876,2]
[399607756,1766542253614,-421.36,0.00032876,2]
[399607757,1766542253626,-421.36,0.00032876,2]
[399607758,1766542253638,-421.36,0.00032876,2]
[399607759,1766542253649,-421.36,0.00032876,2]
[399607760,1766542253661,-421.36,0.00032876,2]
[399607761,1766542253673,-421.36,0.00032876,2]
[399607762,1766542253684,-421.36,0.00032876,2]
[399607763,1766542253696,-421.36,0.00032876,2]
[399607764,1766542253709,-421.36,0.00032876,2]
[399607765,1766542253722,-421.36,0.00032876,2]
[399607766,1766542253734,-421.36,0.00032876,2]
[399607767,1766542253746,-421.36,0.00032876,2]
[399607768,1766542253764,-421.36,0.00032876,2]
[399607769,1766542253776,-421.36,0.00032876,2]
[399607770,1766542253789,-421.36,0.00032876,2]
[399607771,1766542253802,-421.36,0.00032876,2]
[399607772,1766542253814,-421.4740563,0.00032876,2]
[399607773,1766542253825,-500.0,0.00032876,2]
[399607774,1766542253836,-500.0,0.00032876,2]
[399607775,1766542253847,-500.0,0.00032876,2]
[399607776,1766542253860,-500.0,0.00032876,2]
[399607777,1766542253870,-500.0,0.00032876,2]
[399607778,1766542253882,-500.0,0.00032876,2]
[399607779,1766542253893,-500.0,0.00032876,2]
[399607780,1766542253904,-500.0,0.00032876,2]
[399607781,1766542253915,-500.0,0.00032876,2]
[399607782,1766542253926,-500.0,0.00032876,2]
[399607783,1766542253938,-500.0,0.00032876,2]
[399607784,1766542253949,-500.0,0.00032876,2]
[399607785,1766542253961,-349.41344776,0.00032876,2]
[399607786,1766542253972,-500.0,0.00032876,2]
[399607787,1766542253983,-500.0,0.00032876,2]
[399607788,1766542253995,-500.0,0.00032876,2]
[399607789,1766542254006,-500.0,0.00032876,2]
[399607790,1766542254018,-1354.75,0.00032876,2]
[399607791,1766542254029,-500.0,0.00032876,2]
[399607792,1766542254040,-1354.75,0.00032876,2]
[399607793,1766542254055,-500.0,0.00032876,2]
[399607794,1766542254067,-1354.75,0.00032876,2]
[399607795,1766542254079,-500.0,0.00032876,2]
[399607796,1766542254091,-1354.75,0.00032876,2]
[399607797,1766542254103,-500.0,0.00032876,2]
[399607798,1766542254118,-1354.75,0.00032876,2]
[399607799,1766542254131,-500.0,0.00032876,2]
[399607800,1766542254142,-1354.75,0.00032876,2]
[399607801,1766542254154,-500.0,0.00032876,2]
[399607802,1766542254166,-1354.75,0.00032876,2]
[399607803,1766542254178,-500.0,0.00032876,2]
[399607804,1766542254189,-1354.75,0.00032876,2]
[399607805,1766542254202,-500.0,0.00032876,2]
[399607806,1766542254213,-1354.75,0.00032876,2]
[399607807,1766542254224,-500.0,0.00032876,2]
[399607808,1766542254236,-1354.75,0.00032876,2]
[399607809,1766542254248,-500.0,0.00032876,2]
[399607810,1766542254259,-1354.75,0.00032876,2]
[399607811,1766542254271,-500.0,0.00032876,2]
[399607812,1766542254282,-1354.75,0.00032876,2]
[399607813,1766542254293,-500.0,0.00032876,2]
[399607814,1766542254304,-1354.75,0.00032876,2]
[399607815,1766542254314,-500.0,0.00032876,2]
[399607816,1766542254326,-1354.75,0.00032876,2]
[399607817,1766542254339,-1354.75,0.00032876,2]
[399607818,1766542254350,-614.57301928,0.00032876,2]
[399607819,1766542254362,-1354.75,0.00032876,2]
[399607820,1766542254373,-1354.75,0.00032876,2]
[399607821,1766542254384,-1354.75,0.00032876,2]
[399607822,1766542254394,-1354.75,0.00032876,2]
[399607823,1766542254406,-1354.75,0.00032876,2]
[399607824,1766542254417,-1354.75,0.00032876,2]
[399607825,1766542254428,-1354.75,0.00032876,2]
[399607826,1766542254439,-1354.75,0.00032876,2]
[399607827,1766542254450,-1354.89691833,0.00032876,2]
[399607828,1766542254461,-500.0,0.00032876,2]
[399607829,1766542254472,-500.0,0.00032876,2]
[399607830,1766542254487,-500.0,0.00032876,2]
[399607831,1766542254680,-500.0,0.00032876,2]
[399607832,1766542254691,-500.0,0.00032876,2]
[399607833,1766542254701,-500.54569857,0.00032876,2]
[399607834,1766542254711,-352.35,0.00032876,2]
[399607835,1766542254721,-352.35,0.00032876,2]
[399607836,1766542254731,-352.35,0.00032876,2]
[399607837,1766542254741,-352.35,0.00032876,2]
[399607838,1766542254751,-352.35,0.00032876,2]
[399607839,1766542254761,-352.35,0.00032876,2]
[399607840,1766542254771,-352.35,0.00032876,2]
[399607841,1766542254780,-352.35,0.00032876,2]
[399607842,1766542254790,-352.35,0.00032876,2]
[399607843,1766542254799,-352.35,0.00032876,2]
[399607844,1766542254809,-352.35,0.00032876,2]
[399607845,1766542254819,-352.35,0.00032876,2]
[399607846,1766542254829,-352.35,0.00032876,2]
[399607847,1766542254838,-352.35,0.00032876,2]
[399607848,1766542254848,-352.35,0.00032876,2]
[399607849,1766542254858,-352.35,0.00032876,2]
[399607850,1766542254867,-352.35,0.00032876,2]
[399607851,1766542254877,-352.35,0.00032876,2]
[399607852,1766542254887,-352.35,0.00032876,2]
[399607853,1766542254896,-352.35,0.00032876,2]
[399607854,1766542254907,-352.35,0.00032876,2]
[399607855,1766542254916,-352.35,0.00032876,2]
[399607856,1766542254927,-352.35,0.00032876,2]
[399607857,1766542254937,-352.42184057,0.00032876,2]
[399607858,1766542254946,-360.7074777,0.00032876,2]
[399607859,1766542254956,-500.0,0.00032876,2]
[399607860,1766542254966,-500.0,0.00032876,2]
[399607861,1766542254976,-500.0,0.00032876,2]
[399607862,1766542254986,-500.0,0.00032876,2]
[399607863,1766542254996,-500.0,0.00032876,2]
[399607864,1766542255022,-500.0,0.00032876,2]
[399607865,1766542255034,-500.0,0.00032876,2]
[399607866,1766542255045,-500.0,0.00032876,2]
[399607867,1766542255059,-500.0,0.00032876,2]
[399607868,1766542255069,-500.0,0.00032876,2]
[399607869,1766542255079,-500.0,0.00032876,2]
[399607870,1766542255091,-500.0,0.00032876,2]
[399607871,1766542255101,-500.0,0.00032876,2]
[399607872,1766542255112,-355.60597649,0.00032876,2]
[399607873,1766542255123,-947.71,0.00032877,2]
[399607874,1766542255133,-151.0,0.00032877,31]
[399607875,1766542255143,-152.986667,0.00032877,31]
[399607876,1766542255154,-151.0,0.00032877,31]
[399607877,1766542255164,-152.849894,0.00032877,31]
[399607878,1766542255174,-151.0,0.00032877,31]
[399607879,1766542255186,-151.0,0.00032877,31]
[399607880,1766542255196,-153.990546,0.00032877,31]
[399607881,1766542255207,-151.0,0.00032877,31]
[399607882,1766542255219,-151.0,0.00032877,31]
[399607883,1766542255231,-154.152189,0.00032877,31]
[399607884,1766542255245,-151.0,0.00032877,31]
[399607885,1766542255256,-151.0,0.00032877,31]
[399607886,1766542255268,-151.0,0.00032877,31]
[399607887,1766542255279,-151.0,0.00032877,31]
[399607888,1766542255292,-151.0,0.00032877,31]
[399607889,1766542255303,-153.757642,0.00032877,31]
[399607890,1766542255314,-151.0,0.00032877,31]
[399607891,1766542255327,-153.442587,0.00032877,31]
[399607892,1766542255349,-151.0,0.00032877,31]
[399607893,1766542255360,-153.192149,0.00032877,31]
[399607894,1766542255379,-151.0,0.00032877,31]
[399607895,1766542255391,-153.487297,0.00032877,31]
[399607896,1766542255402,-151.0,0.00032877,31]
[399607897,1766542255414,-151.0,0.00032877,31]
[399607898,1766542255425,-151.0,0.00032877,31]
[399607899,1766542255435,-151.0,0.00032877,31]
[399607900,1766542255445,-152.556167,0.00032877,31]
[399607901,1766542255456,-151.0,0.00032877,31]
[399607902,1766542255467,-152.766261,0.00032877,31]
[399607903,1766542255478,-151.0,0.00032877,31]
[399607904,1766542255490,-151.0,0.00032877,31]
[399607905,1766542255500,-151.000009,0.00032877,31]
[399607906,1766542255511,-151.0,0.00032877,31]
[399607907,1766542255521,-154.073971,0.00032877,31]
[399607908,1766542255532,-151.0,0.00032877,31]
[399607909,1766542255542,-153.800413,0.00032877,31]
[399607910,1766542255552,-151.0,0.00032877,31]
[399607911,1766542255563,-152.981379,0.00032877,31]
[399607912,1766542255573,-151.0,0.00032877,31]
[399607913,1766542255583,-153.728828,0.00032877,31]
[399607914,1766542255594,-151.0,0.00032877,31]
[399607915,1766542255604,-151.0,0.00032877,31]
[399607916,1766542255616,-151.0,0.00032877,31]
[399607917,1766542255627,-151.0,0.00032877,31]
[399607918,1766542255637,-242.71403316,0.00032877,31]
[399607919,1766542255647,-151.0,0.00032877,31]
[399607920,1766542255657,-151.0,0.00032877,31]
[399607921,1766542255667,-151.0,0.00032877,31]
[399607922,1766542255677,-151.0,0.00032877,31]
[399607923,1766542255687,-151.0,0.00032877,31]
[399607924,1766542255697,-151.568408,0.00032877,31]
[399607925,1766542255707,-151.0,0.00032877,31]
[399607926,1766542255717,-151.0,0.00032877,31]
[399607927,1766542255728,-237.179045,0.00032877,31]
[399607928,1766542255738,-151.0,0.00032877,31]
[399607929,1766542255748,-151.0,0.00032877,31]
[399607930,1766542255757,-151.0,0.00032877,31]
[399607931,1766542255767,-151.0,0.00032877,31]
[399607932,1766542255777,-151.0,0.00032877,31]
[399607933,1766542255787,-151.0,0.00032877,31]
[399607934,1766542255796,-151.987336,0.00032877,31]
[399607935,1766542255806,-268.54108997,0.00032877,31]
[399607936,1766542255816,-151.0,0.00032877,31]
[399607937,1766542255826,-161.656006,0.00032877,31]
[399607938,1766542255835,-151.0,0.00032877,31]
[399607939,1766542255845,-152.281485,0.00032877,31]
[399607940,1766542255855,-151.0,0.00032877,31]
[399607941,1766542255867,-189.294707,0.00032877,31]
[399607942,1766542255877,-151.0,0.00032877,31]
[399607943,1766542255887,-151.0,0.00032877,31]
[399607944,1766542255897,-152.223922,0.00032877,31]
[399607945,1766542255908,-151.0,0.00032877,31]
[399607946,1766542255918,-151.0,0.00032877,31]
[399607947,1766542255928,-151.0,0.00032877,31]
[399607948,1766542255938,-153.105679,0.00032877,31]
[399607949,1766542255947,-151.0,0.00032877,31]
[399607950,1766542255957,-151.0,0.00032877,31]
[399607951,1766542255967,-151.0,0.00032877,31]
[399607952,1766542255977,-151.0,0.00032877,31]
[399607953,1766542255987,-159.27757,0.00032877,31]
[399607954,1766542255997,-254.775919,0.00032877,31]
[399607955,1766542256007,-151.0,0.00032877,31]
[399607956,1766542256016,-248.197329,0.00032877,31]
[399607957,1766542256026,-185.326338,0.00032877,31]
[399607958,1766542256036,-151.0,0.00032877,31]
[399607959,1766542256046,-151.0,0.00032877,31]
[399607960,1766542256059,-151.0,0.00032877,31]
[399607961,1766542256069,-158.208195,0.00032877,31]
[399607962,1766542256079,-151.0,0.00032877,31]
[399607963,1766542256091,-151.0,0.00032877,31]
[399607964,1766542256101,-151.0,0.00032877,31]
[399607965,1766542256112,-151.0,0.00032877,31]
[399607966,1766542256122,-151.0,0.00032877,31]
[399607967,1766542256134,-154.291819,0.00032877,31]
[399607968,1766542256144,-151.0,0.00032877,31]
[399607969,1766542256154,-151.0,0.00032877,31]
[399607970,1766542256165,-151.0,0.00032877,31]
[399607971,1766542256175,-151.0,0.00032877,31]
[399607972,1766542256186,-151.0,0.00032877,31]
[399607973,1766542256197,-151.0,0.00032877,31]
[399607974,1766542256207,-151.0,0.00032877,31]
[399607975,1766542256218,-216.48453,0.00032877,31]
[399607976,1766542256228,-164.748895,0.00032877,31]
[399607977,1766542256238,-342.84,0.00032877,2]
[399607978,1766542256249,-151.0,0.00032877,31]
[399607979,1766542256260,-151.0,0.00032877,31]
[399607980,1766542256271,-151.0,0.00032877,31]
[399607981,1766542256281,-151.0,0.00032877,31]
[399607982,1766542256293,-262.524297,0.00032877,31]
[399607983,1766542256303,-151.0,0.00032877,31]
[399607984,1766542256314,-152.497675,0.00032877,31]
[399607985,1766542256324,-151.0,0.00032877,31]
[399607986,1766542256334,-151.0,0.00032877,31]
[399607987,1766542256363,-151.0,0.00032877,31]
[399607988,1766542256373,-151.0,0.00032877,31]
[399607989,1766542256384,-151.0,0.00032877,31]
[399607990,1766542256394,-151.0,0.00032877,31]
[399607991,1766542256404,-151.0,0.00032877,31]
[399607992,1766542256413,-151.0,0.00032877,31]
[399607993,1766542256423,-151.0,0.00032877,31]
[399607994,1766542256433,-151.0,0.00032877,31]
[399607995,1766542256443,-151.0,0.00032877,31]
[399607996,1766542256453,-203.295681,0.00032877,31]
[399607997,1766542256463,-151.0,0.00032877,31]
[399607998,1766542256473,-287.802169,0.00032877,31]
[399607999,1766542256483,-151.0,0.00032877,31]
[399608000,1766542256492,-287.802169,0.00032877,31]
[399608001,1766542256502,-151.0,0.00032877,31]
[399608002,1766542256513,-287.802169,0.00032877,31]
[399608003,1766542256522,-151.0,0.00032877,31]
[399608004,1766542256532,-287.802169,0.00032877,31]
[399608005,1766542256542,-208.248038,0.00032877,31]
[399608006,1766542256552,-287.802169,0.00032877,31]
[399608007,1766542256563,-287.802169,0.00032877,31]
[399608008,1766542256573,-287.802169,0.00032877,31]
[399608009,1766542256583,-287.802169,0.00032877,31]
[399608010,1766542256593,-287.802169,0.00032877,31]
[399608011,1766542256602,-287.802169,0.00032877,31]
[399608012,1766542256612,-287.802169,0.00032877,31]
[399608013,1766542256623,-287.802169,0.00032877,31]
[399608014,1766542256633,-287.802169,0.00032877,31]
[399608015,1766542256643,-287.802169,0.00032877,31]
[399608016,1766542256653,-287.802169,0.00032877,31]
[399608017,1766542256663,-287.802169,0.00032877,31]
[399608018,1766542256673,-287.802169,0.00032877,31]
[399608019,1766542256683,-287.802169,0.00032877,31]
[399608020,1766542256694,-287.802169,0.00032877,31]
[399608021,1766542256704,-151.0,0.00032877,31]
[399608022,1766542256714,-287.802162,0.00032877,31]
[399608023,1766542256725,-151.0,0.00032877,31]
[399608024,1766542256735,-154.287033,0.00032877,31]
[399608025,1766542256746,-151.0,0.00032877,31]
[399608026,1766542256756,-151.0,0.00032877,31]
[399608027,1766542256767,-177.653903,0.00032877,31]
[399608028,1766542256778,-151.0,0.00032877,31]
[399608029,1766542256789,-151.0,0.00032877,31]
[399608030,1766542256803,-151.0,0.00032877,31]
[399608031,1766542256814,-151.0,0.00032877,31]
[399608032,1766542256824,-151.0,0.00032877,31]
[399608033,1766542256835,-151.0,0.00032877,31]
[399608034,1766542256846,-151.0,0.00032877,31]
[399608035,1766542256857,-151.0,0.00032877,31]
[399608036,1766542256870,-151.0,0.00032877,31]
[399608037,1766542256880,-151.0,0.00032877,31]
[399608038,1766542256890,-167.19744,0.00032877,31]
[399608039,1766542256900,-151.0,0.00032877,31]
[399608040,1766542256910,-151.0,0.00032877,31]
[399608041,1766542256919,-151.0,0.00032877,31]
[399608042,1766542256929,-151.0,0.00032877,31]
[399608043,1766542256939,-151.0,0.00032877,31]
[399608044,1766542256949,-151.0,0.00032877,31]
[399608045,1766542256959,-151.0,0.00032877,31]
[399608046,1766542256968,-151.0,0.00032877,31]
[399608047,1766542256978,-171.686888,0.00032877,31]
[399608048,1766542256988,-151.0,0.00032877,31]
[399608049,1766542256997,-151.0,0.00032877,31]
[399608050,1766542257008,-151.0,0.00032877,31]
[399608051,1766542257017,-151.0,0.00032877,31]
[399608052,1766542257027,-151.0,0.00032877,31]
[399608053,1766542257037,-151.0,0.00032877,31]
[399608054,1766542257048,-254.856091,0.00032877,31]
[399608055,1766542257061,-151.0,0.00032877,31]
[399608056,1766542257071,-151.0,0.00032877,31]
[399608057,1766542257081,-151.0,0.00032877,31]
[399608058,1766542257091,-151.0,0.00032877,31]
[399608059,1766542257103,-151.0,0.00032877,31]
[399608060,1766542257115,-151.0,0.00032877,31]
[399608061,1766542257126,-191.819311,0.00032877,31]
[399608062,1766542257139,-151.0,0.00032877,31]
[399608063,1766542257150,-151.0,0.00032877,31]
[399608064,1766542257160,-263.88349,0.00032877,31]
[399608065,1766542257169,-151.0,0.00032877,31]
[399608066,1766542257179,-151.0,0.00032877,31]
[399608067,1766542257190,-153.547208,0.00032877,31]
[399608068,1766542257200,-151.0,0.00032877,31]
[399608069,1766542257210,-151.0,0.00032877,31]
[399608070,1766542257220,-151.0,0.00032877,31]
[399608071,1766542257230,-151.0,0.00032877,31]
[399608072,1766542257240,-151.0,0.00032877,31]
[399608073,1766542257250,-168.515848,0.00032877,31]
[399608074,1766542257261,-151.0,0.00032877,31]
[399608075,1766542257272,-151.0,0.00032877,31]
[399608076,1766542257281,-151.0,0.00032877,31]
[399608077,1766542257292,-151.0,0.00032877,31]
[399608078,1766542257301,-153.642902,0.00032877,31]
[399608079,1766542257312,-151.0,0.00032877,31]
[399608080,1766542257323,-151.0,0.00032877,31]
[399608081,1766542257333,-151.0,0.00032877,31]
[399608082,1766542257343,-153.969203,0.00032877,31]
[399608083,1766542257353,-163.979754,0.00032877,31]
[399608084,1766542257363,-151.351272,0.00032877,31]
[399608085,1766542257373,-151.0,0.00032877,31]
[399608086,1766542257383,-151.0,0.00032877,31]
[399608087,1766542257393,-151.0,0.00032877,31]
[399608088,1766542257403,-301.736056,0.00032877,31]
[399608089,1766542257413,-151.0,0.00032877,31]
[399608090,1766542257423,-151.0,0.00032877,31]
[399608091,1766542257433,-151.0,0.00032877,31]
[399608092,1766542257443,-151.0,0.00032877,31]
[399608093,1766542257453,-151.0,0.00032877,31]
[399608094,1766542257463,-151.0,0.00032877,31]
[399608095,1766542257472,-227.719341,0.00032877,31]
[399608096,1766542257482,-151.0,0.00032877,31]
[399608097,1766542257492,-280.722081,0.00032877,31]
[399608098,1766542257502,-184.925909,0.00032877,31]
[399608099,1766542257512,-151.0,0.00032877,31]
[399608100,1766542257522,-151.0,0.00032877,31]
[399608101,1766542257531,-151.0,0.00032877,31]
[399608102,1766542257541,-151.0,0.00032877,31]
[399608103,1766542257551,-151.0,0.00032877,31]
[399608104,1766542257561,-182.76084,0.00032877,31]
[399608105,1766542257571,-151.0,0.00032877,31]
[399608106,1766542257581,-151.0,0.00032877,31]
[399608107,1766542257591,-151.0,0.00032877,31]
[399608108,1766542257601,-151.0,0.00032877,31]
[399608109,1766542257611,-151.551382,0.00032877,31]
[399608110,1766542257621,-154.730785,0.00032877,31]
[399608111,1766542257631,-151.0,0.00032877,31]
[399608112,1766542257640,-151.0,0.00032877,31]
[399608113,1766542257651,-151.0,0.00032877,31]
[399608114,1766542257660,-151.0,0.00032877,31]
[399608115,1766542257670,-154.307587,0.00032877,31]
[399608116,1766542257680,-151.0,0.00032877,31]
[399608117,1766542257690,-151.0,0.00032877,31]
[399608118,1766542257700,-151.0,0.00032877,31]
[399608119,1766542257710,-151.0,0.00032877,31]
[399608120,1766542257720,-151.0,0.00032877,31]
[399608121,1766542257730,-151.0,0.00032877,31]
[399608122,1766542257740,-151.0,0.00032877,31]
[399608123,1766542257749,-151.0,0.00032877,31]
[399608124,1766542257759,-153.948086,0.00032877,31]
[399608125,1766542257769,-204.565441,0.00032877,31]